bitfinex-derivatives/quotes_ETHF0:USTF0_20250501
["timestamp","ask_amount","ask_price","bid_price","bid_amount"]
[1746111539093,1.08187,1848.0,1847.5,40.8]
[1746111539290,3.2078,1848.2,1847.7,1.08199]
[1746111539586,1.08188,1848.0,1847.7,1.08199]
[1746111539790,3.2078,1848.2,1847.5,44.0078]
[1746111540292,4.28967,1848.0,1847.7,1.08203]
[1746111540592,1.08187,1848.0,1847.7,1.08202]
[1746111540791,1.08184,1848.1,1847.8,1.08197]
[1746111540993,4.2896,1848.2,1847.8,1.08194]
[1746111541395,4.2896,1848.2,1847.9,1.08191]
[1746111541597,1.08185,1848.1,1847.7,1.08198]
[1746111541796,1.08185,1848.1,1847.8,1.08198]
[1746111542786,3.2078,1848.2,1847.6,3.777]
[1746111543096,4.2897,1848.0,1847.7,1.082]
[1746111543495,1.08193,1847.9,1847.6,4.85906]
[1746111543996,3.2078,1848.0,1847.6,3.777]
[1746111544190,3.2078,1848.0,1847.8,1.08196]
[1746111544393,3.2078,1848.0,1847.6,3.777]
[1746111544591,3.2078,1848.0,1847.8,1.08197]
[1746111545194,4.28968,1848.0,1847.7,1.08201]
[1746111545698,4.28968,1848.0,1847.8,1.08198]
[1746111546202,4.28967,1848.0,1847.9,1.08193]
[1746111546394,4.28967,1848.0,1847.8,1.08193]
[1746111546588,3.2078,1848.0,1847.9,1.08193]
[1746111546987,3.2078,1848.0,1847.6,3.777]
[1746111547193,1.08194,1847.9,1847.8,1.08198]
[1746111547394,4.28971,1848.0,1847.8,1.08198]
[1746111547594,3.2078,1848.0,1847.6,3.777]
[1746111547900,3.2078,1848.0,1847.6,4.85907]
[1746111548197,1.08204,1847.7,1847.6,3.777]
[1746111548600,1.08204,1847.7,1847.6,4.8591]
[1746111548793,1.08204,1847.7,1847.6,3.777]
[1746111549403,1.08204,1847.7,1847.6,4.8591]
[1746111549589,3.2078,1847.8,1847.6,4.8591]
[1746111549894,1.0,1850.0,1849.2,3.2078]
[1746111550087,4.2078,1850.0,1849.2,3.984]
[1746111550289,4.64925249,1850.0,1849.3,40.8]
[1746111550496,3.2078,1849.8,1849.3,45.08889]
[1746111550793,1.0,1850.0,1849.3,40.8]
[1746111550794,4.2078,1850.0,1849.3,40.8]
[1746111550990,3.2078,1849.7,1849.3,40.8]
[1746111551699,4.258,1849.7,1849.3,40.8]
[1746111551999,1.08105,1849.4,1849.3,40.8]
[1746111552295,4.258,1849.6,1848.9,5.91113]
[1746111552598,1.08101,1849.5,1849.2,1.08114]
[1746111552793,1.08095,1849.6,1849.2,40.8]
[1746111553001,1.08105,1849.4,1849.2,40.8]
[1746111553402,7.4658,1849.8,1849.2,40.8]
[1746111553403,1.08103,1849.5,1849.2,41.88112]
[1746111553700,7.4658,1849.8,1849.2,41.88112]
[1746111553894,7.4658,1849.8,1849.2,40.8]
[1746111554093,1.08105,1849.4,1849.2,40.8]
[1746111554494,1.08105,1849.4,1849.2,41.88116]
[1746111554702,1.08105,1849.4,1849.2,40.8]
[1746111554900,3.2078,1849.7,1849.2,40.8]
[1746111555199,1.08111,1849.3,1849.2,40.8]
[1746111556095,3.2078,1849.5,1849.2,40.8]
[1746111556294,3.2078,1849.7,1849.2,40.8]
[1746111556504,1.08107,1849.4,1849.2,40.8]
[1746111556692,1.08111,1849.3,1849.2,40.8]
[1746111557299,5.9106,1849.3,1848.8,7.4678]
[1746111557509,1.08134,1848.9,1848.8,4.26]
[1746111557703,3.2078,1849.1,1848.6,3.2078]
[1746111557903,1.08137,1848.9,1848.7,41.88145]
[1746111558297,10.16852,1849.4,1848.7,40.8]
[1746111558499,1.08133,1849.0,1848.8,4.28918]
[1746111558702,1.08132,1849.0,1848.8,1.0814]
[1746111558900,3.2078,1849.2,1848.8,1.0814]
[1746111559095,1.08134,1849.0,1848.7,40.8]
[1746111559301,1.08126,1849.1,1848.9,1.08132]
[1746111560005,3.2078,1849.2,1848.8,3.2078]
[1746111560205,3.2078,1849.2,1848.9,1.08133]
[1746111560406,1.08122,1849.1,1848.9,1.0813]
[1746111560602,3.2078,1849.2,1848.8,3.2078]
[1746111560803,1.08123,1849.1,1848.9,1.0813]
[1746111561203,1.08123,1849.1,1849.0,1.08128]
[1746111561401,1.08123,1849.1,1848.8,3.2078]
[1746111561798,3.2078,1849.4,1848.8,3.2078]
[1746111562004,1.08116,1849.3,1849.1,1.08121]
[1746111562204,1.08122,1849.1,1849.0,4.28905]
[1746111562405,1.08121,1849.2,1849.0,4.28905]
[1746111562600,2.70266,1849.4,1848.9,5.33833]
[1746111562814,1.08128,1849.0,1848.9,4.257]
[1746111563302,2.70277,1849.3,1848.9,4.257]
[1746111563303,1.08127,1849.1,1848.9,5.33832]
[1746111563507,5.91046,1849.4,1848.9,5.33833]
[1746111563710,1.08124,1849.1,1848.9,5.33833]
[1746111563904,5.876,1849.5,1849.0,3.2078]
[1746111564105,1.08112,1849.3,1849.0,3.2078]
[1746111564609,1.08112,1849.3,1849.1,1.08118]
[1746111564803,5.876,1849.5,1849.2,1.08115]
[1746111565007,1.08113,1849.3,1849.1,1.08118]
[1746111565314,1.08113,1849.3,1849.1,4.28898]
[1746111565502,1.08117,1849.2,1849.1,4.28902]
[1746111565702,5.876,1849.5,1849.4,1.08105]
[1746111565907,1.08096,1849.6,1849.5,1.08099]
[1746111566107,8.57795,1849.9,1849.5,1.08099]
[1746111566312,6.90956,1850.0,1849.5,3.2078]
[1746111566603,1.08083,1849.8,1849.5,3.2078]
[1746111566804,4.2078,1850.0,1849.6,40.8]
[1746111567110,1.08087,1849.7,1849.6,41.8809]
[1746111567303,1.08085,1849.8,1849.7,1.08086]
[1746111567501,1.08081,1849.9,1849.7,1.08087]
[1746111567707,1.08081,1849.9,1849.8,1.08081]
[1746111567906,1.08087,1849.7,1849.6,41.88091]
[1746111568210,1.08087,1849.7,1849.6,41.88093]
[1746111568403,1.08087,1849.7,1849.6,40.8]
[1746111569006,3.2078,1849.8,1849.6,41.88091]
[1746111569312,1.08087,1849.7,1849.6,40.8]
[1746111570508,4.28866,1849.8,1849.7,1.08087]
[1746111570908,1.08087,1849.7,1849.6,40.8]
[1746111571714,1.08087,1849.7,1849.6,41.88093]
[1746111572012,1.08087,1849.7,1849.6,40.8]
[1746111573310,1.08087,1849.7,1849.6,41.88093]
[1746111573512,1.08087,1849.7,1849.6,40.8]
[1746111573917,1.08087,1849.7,1849.6,41.88093]
[1746111574113,4.2078,1850.0,1849.6,40.8]
[1746111574314,1.08077,1849.9,1849.8,1.08076]
[1746111574713,4.2078,1850.0,1849.6,40.8]
[1746111574915,4.2078,1850.0,1849.3,3.62354054]
[1746111575219,1.08103,1849.5,1849.4,1.08103]
[1746111575418,1.08103,1849.5,1849.4,40.8]
[1746111576913,2.70263,1849.4,1848.8,11.31560527]
[1746111577122,2.70277,1849.3,1848.9,1.08133]
[1746111577411,5.40467,1849.7,1849.1,1.08117]
[1746111577412,5.91021,1849.6,1849.1,1.08117]
[1746111577615,3.2078,1849.8,1849.0,44.0078]
[1746111577820,1.08095,1849.6,1849.4,1.081]
[1746111578120,1.08099,1849.5,1849.3,4.256]
[1746111578316,2.70207,1849.8,1849.3,5.33706]
[1746111578513,1.08101,1849.5,1849.3,4.256]
[1746111578714,3.2078,1849.8,1849.4,1.08105]
[1746111579019,1.0,1850.0,1849.4,3.2078]
[1746111579222,1.0,1850.0,1849.8,1.0808]
[1746111579520,1.08079,1849.9,1849.7,1.08086]
[1746111579723,1.08081,1849.8,1849.7,4.256]
[1746111580221,1.1108,1849.9,1849.7,5.33687]
[1746111580409,0.03,1849.9,1849.8,1.08081]
[1746111580609,1.08081,1849.8,1849.7,4.256]
[1746111581015,1.1108,1849.9,1849.7,5.33683]
[1746111581724,1.11081,1849.8,1849.7,4.256]
[1746111583319,1.11081,1849.8,1849.7,5.33687]
[1746111583511,0.03,1849.8,1849.7,5.33687]
[1746111583925,1.11081,1849.8,1849.7,4.256]
[1746111584521,1.11081,1849.8,1849.7,5.33687]
[1746111584716,0.03,1849.8,1849.7,5.33687]
[1746111586323,1.11081,1849.8,1849.7,5.33687]
[1746111586823,0.03,1849.8,1849.7,5.33687]
[1746111589023,0.03,1849.8,1849.7,8.54467]
[1746111589420,0.03,1849.8,1849.7,5.33687]
[1746111591328,0.03,1849.8,1849.7,8.54467]
[1746111591523,1.11081,1849.8,1849.7,8.54467]
[1746111591828,1.08091,1849.7,1849.6,1.0809]
[1746111592326,1.11085,1849.8,1849.7,1.08087]
[1746111593628,1.11085,1849.8,1849.6,1.0809]
[1746111593629,1.08092,1849.7,1849.6,1.0809]
[1746111594028,1.08099,1849.5,1849.4,5.31899]
[1746111594223,1.08098,1849.6,1849.5,1.08097]
[1746111594626,1.11098,1849.6,1849.5,1.08097]
[1746111595730,1.08099,1849.5,1849.4,5.319]
[1746111595930,1.08099,1849.5,1849.4,5.31905]
[1746111596125,2.70248,1849.5,1849.2,7.02643527]
[1746111596317,1.08105,1849.4,1849.3,7.02643527]
[1746111596727,0.03,1849.4,1849.3,8.10754527]
[1746111597017,1.11105,1849.4,1849.3,8.10754527]
[1746111598130,1.11105,1849.4,1849.3,7.02643527]
[1746111600035,1.08117,1849.2,1849.1,7.02643527]
[1746111600533,1.08117,1849.2,1849.1,8.10765527]
[1746111600734,0.03,1849.2,1849.1,7.02643527]
[1746111600938,0.03,1849.2,1849.1,8.10765527]
[1746111602328,13.3228,1849.9,1849.4,2.70261]
[1746111602535,3.70179,1850.0,1849.1,12.02643527]
[1746111602536,1.08085,1849.8,1849.7,1.08083]
[1746111602833,1.0,1850.0,1849.9,1.08076]
[1746111603129,1.0,1850.0,1849.9,4.28856]
[1746111603435,1.0,1850.0,1849.9,9.28856]
[1746111603935,1.0,1850.0,1849.9,50.08856]
[1746111604235,0.34432029,1850.2,1849.9,50.08856]
[1746111604236,1.0804,1850.6,1850.1,1.08064]
[1746111604437,5.37625137,1850.7,1850.6,1.08035]
[1746111604633,6.45657137,1850.7,1850.5,1.08038]
[1746111604933,1.08031,1850.7,1850.5,1.0804]
[1746111605134,3.2078,1851.1,1850.7,1.08025]
[1746111605330,1.08029,1850.7,1850.6,40.8]
[1746111605727,8.2078,1850.7,1850.0,3.2078]
[1746111605926,1.08064,1850.1,1850.0,3.2078]
[1746111606138,1.08076,1849.9,1849.8,7.11554018]
[1746111606438,1.08076,1849.9,1849.8,7.10744511]
[1746111606731,6.08076,1849.9,1849.8,7.10744511]
[1746111606928,4.28856,1849.9,1849.8,7.10744511]
[1746111607129,9.28856,1849.9,1849.8,7.10744511]
[1746111607330,9.28856,1849.9,1849.8,6.01975511]
[1746111607530,9.28856,1849.9,1849.8,4.70932511]
[1746111607733,9.28856,1849.9,1849.6,10.5396529]
[1746111607734,1.08087,1849.7,1849.6,10.5396529]
[1746111607935,4.28867,1849.7,1849.6,10.5396529]
[1746111608240,5.31887,1849.7,1849.6,10.5396529]
[1746111608430,8.52667,1849.7,1849.6,10.5396529]
[1746111608739,13.52667,1849.7,1849.6,10.5396529]
[1746111609129,13.52667,1849.7,1849.6,9.1724229]
[1746111609330,13.52667,1849.7,1849.6,7.6111929]
[1746111609734,8.52667,1849.7,1849.6,7.6111929]
[1746111609936,5.31887,1849.7,1849.6,7.6111929]
[1746111610126,5.90928,1850.2,1849.6,10.8189929]
[1746111610330,1.08087,1849.7,1849.6,7.6111929]
[1746111610534,3.2078,1850.0,1849.6,7.6111929]
[1746111610738,1.08087,1849.7,1849.6,7.6111929]
[1746111611038,1.08087,1849.7,1849.4,17.26067054]
[1746111611039,1.08085,1849.8,1849.4,3.2078]
[1746111611237,1.08084,1849.8,1849.4,3.2078]
[1746111611440,2.70193,1849.9,1849.4,4.28883]
[1746111611735,3.2078,1850.0,1849.4,1.08105]
[1746111611736,1.08101,1849.5,1849.4,1.08105]
[1746111611937,2.70204,1849.8,1849.3,1.08106]
[1746111612232,1.08108,1849.4,1849.2,4.28892]
[1746111612430,1.08108,1849.4,1849.3,1.08111]
[1746111613941,2.70219,1849.7,1849.3,1.08111]
[1746111614240,1.08103,1849.5,1849.3,1.08111]
[1746111614436,2.70219,1849.7,1849.3,1.08111]
[1746111614639,1.08101,1849.5,1849.3,1.08107]
[1746111615033,1.08105,1849.4,1849.3,1.08107]
[1746111615240,2.70219,1849.7,1849.3,1.08107]
[1746111615443,1.08102,1849.5,1849.1,2.70305]
[1746111615744,1.08098,1849.6,1849.5,1.08099]
[1746111615937,1.08099,1849.5,1849.4,4.2888]
[1746111616136,4.146,1849.8,1849.4,3.2078]
[1746111616330,1.08095,1849.6,1849.5,1.08096]
[1746111616536,1.08099,1849.5,1849.4,4.28881]
[1746111616742,1.08099,1849.5,1849.4,3.2078]
[1746111616946,1.08099,1849.6,1849.5,1.08099]
[1746111617242,1.08093,1849.7,1849.6,1.08092]
[1746111617439,2.70204,1849.8,1849.3,5.91056]
[1746111617640,1.08094,1849.6,1849.5,1.08094]
[1746111618143,8.57791,1849.9,1849.3,5.91056]
[1746111618346,1.08092,1849.7,1849.6,1.08091]
[1746111619039,1.08101,1849.5,1849.4,1.081]
[1746111619238,1.08105,1849.4,1849.3,1.08106]
[1746111619946,1.08115,1849.3,1849.2,1.08114]
[1746111620545,1.08117,1849.2,1849.1,33.93734758]
[1746111620745,5.22717,1849.2,1849.1,30.72954758]
[1746111621050,16.10317,1849.2,1849.1,29.64454758]
[1746111621243,16.10317,1849.2,1849.1,26.34393758]
[1746111621439,16.10317,1849.2,1849.1,25.10468758]
[1746111621841,16.10317,1849.2,1849.1,21.89395758]
[1746111622144,16.10317,1849.2,1849.1,17.65167758]
[1746111622344,1.08128,1849.0,1848.9,11.61049817]
[1746111622540,6.95728,1849.0,1848.9,9.84738817]
[1746111622742,11.95728,1849.0,1848.9,6.50264817]
[1746111623344,11.95728,1849.0,1848.9,5.15241817]
[1746111623547,6.95728,1849.0,1848.9,3.78136817]
[1746111623753,16.10428,1849.0,1848.9,3.78136817]
[1746111623941,2.70357,1848.8,1848.4,1.08163]
[1746111624145,1.08156,1848.6,1848.2,2.70438]
[1746111624352,1.08159,1848.5,1848.4,1.08159]
[1746111624547,1.08151,1848.7,1848.6,10.8158]
[1746111624850,1.08163,1848.4,1848.3,3.2078]
[1746111625054,1.08163,1848.4,1848.1,44.0078]
[1746111625254,1.08163,1848.4,1848.3,11.89749]
[1746111625456,1.08163,1848.4,1848.3,10.8158]
[1746111625658,1.08162,1848.5,1848.4,1.08163]
[1746111626156,1.08162,1848.5,1848.4,10.8158]
[1746111627152,2.70367,1848.7,1848.1,41.88177]
[1746111627353,3.2078,1848.2,1847.8,8.07111817]
[1746111627556,1.08193,1847.9,1847.8,3.78136817]
[1746111627756,1.08193,1847.9,1847.8,56.47914817]
[1746111628063,1.08193,1847.9,1847.8,56.47910817]
[1746111628254,1.08193,1847.9,1847.8,55.39716817]
[1746111628659,1.08193,1847.9,1847.8,44.58136817]
[1746111628859,4.28973,1847.9,1847.8,3.78136817]
[1746111629165,1.0821,1847.6,1847.5,4.28991]
[1746111629360,1.08217,1847.5,1847.3,4.148]
[1746111629563,1.08204,1847.7,1847.6,10.8158]
[1746111629760,1.08216,1847.5,1847.4,10.8158]
[1746111629952,1.08222,1847.4,1847.3,51.6158]
[1746111630157,2.70557,1847.4,1847.0,1.08242]
[1746111630357,1.08234,1847.2,1847.1,10.8158]
[1746111630764,1.08234,1847.2,1847.1,51.6158]
[1746111631165,1.08234,1847.2,1847.1,52.69819]
[1746111631352,1.08226,1847.4,1847.3,1.08228]
[1746111631558,5.23104,1847.7,1847.6,10.8158]
[1746111631758,1.08204,1847.7,1847.6,10.8158]
[1746111632058,1.08217,1847.5,1847.4,1.0822]
[1746111632259,2.70511,1847.7,1847.4,10.8158]
[1746111632558,1.08234,1847.2,1847.1,41.88237]
[1746111632864,1.08234,1847.2,1847.1,40.8]
[1746111633158,1.08234,1847.2,1847.1,52.69819]
[1746111633362,1.08232,1847.3,1847.2,1.08234]
[1746111633865,4.28997,1847.5,1847.4,1.08222]
[1746111634062,4.28997,1847.5,1847.4,10.8158]
[1746111634461,4.28997,1847.5,1847.4,11.89802]
[1746111634659,4.149,1847.9,1847.4,10.8158]
[1746111634856,3.2078,1848.0,1847.9,11.89773]
[1746111635059,4.28967,1848.0,1847.9,10.8158]
[1746111635967,2.70485,1847.9,1847.4,1.08218]
[1746111636155,1.08198,1847.8,1847.7,10.8158]
[1746111636565,1.08198,1847.8,1847.7,11.89784]
[1746111637367,1.08198,1847.8,1847.7,10.8158]
[1746111638467,8.58091,1847.9,1847.4,1.08219]
[1746111638659,1.08204,1847.7,1847.6,10.8158]
[1746111638864,1.08216,1847.5,1847.4,4.28999]
[1746111639063,1.08214,1847.6,1847.5,10.8158]
[1746111639670,1.08225,1847.4,1847.3,1.08225]
[1746111640065,1.08222,1847.4,1847.3,10.8158]
[1746111640367,1.08225,1847.4,1847.3,1.08225]
[1746111640869,1.08225,1847.4,1847.3,10.8158]
[1746111641267,1.08225,1847.4,1847.3,11.89808]
[1746111641472,1.08225,1847.4,1847.3,10.8158]
[1746111641667,1.08225,1847.4,1847.3,11.89808]
[1746111641869,1.08225,1847.4,1847.3,10.8158]
[1746111642173,1.08225,1847.4,1847.3,11.89808]
[1746111642475,1.08225,1847.4,1847.3,10.8158]
[1746111642776,1.08228,1847.3,1847.2,3.2078]
[1746111642966,1.08228,1847.3,1847.2,4.29014]
[1746111643166,1.08228,1847.3,1847.2,15.10594]
[1746111643763,1.08228,1847.3,1847.2,14.0236]
[1746111643969,1.08228,1847.3,1847.2,15.10594]
[1746111644365,1.08225,1847.4,1847.3,1.08223]
[1746111644878,1.08225,1847.4,1847.3,10.8158]
[1746111645673,1.08225,1847.4,1847.3,11.89808]
[1746111645874,5.876,1847.7,1847.6,1.0821]
[1746111646075,6.95811,1847.7,1847.6,10.8158]
[1746111646268,1.08211,1847.7,1847.6,10.8158]
[1746111646575,1.08216,1847.5,1847.4,1.08222]
[1746111646977,1.08216,1847.5,1847.4,10.8158]
[1746111647179,1.08216,1847.5,1847.4,11.89802]
[1746111647476,1.08216,1847.5,1847.4,15.10582]
[1746111647978,1.08216,1847.5,1847.4,11.89802]
[1746111648476,1.08216,1847.5,1847.4,15.10582]
[1746111648873,1.08215,1847.6,1847.5,1.08212]
[1746111649077,1.08215,1847.6,1847.5,11.89792]
[1746111649279,1.08201,1847.8,1847.7,1.08198]
[1746111649474,3.2078,1847.9,1847.8,1.08198]
[1746111649777,9.0838,1848.1,1847.8,10.8158]
[1746111650078,1.08187,1848.0,1847.9,11.89773]
[1746111650279,1.08187,1848.0,1847.9,15.10553]
[1746111650674,6.95786,1848.1,1848.0,1.08187]
[1746111650879,1.0818,1848.2,1848.1,1.08178]
[1746111651271,1.0818,1848.2,1848.1,11.89758]
[1746111651776,1.08175,1848.2,1848.1,11.89756]
[1746111652171,12.63696,1848.5,1848.1,11.89756]
[1746111652172,1.08174,1848.3,1848.2,1.08173]
[1746111652368,12.63696,1848.5,1848.1,14.0236]
[1746111652369,9.933,1848.5,1848.3,11.89747]
[1746111652578,1.08163,1848.4,1848.3,10.8158]
[1746111652773,1.08174,1848.3,1848.2,1.08173]
[1746111652974,12.63695,1848.5,1848.3,10.8158]
[1746111653281,1.08163,1848.4,1848.3,10.8158]
[1746111655369,1.08181,1848.1,1848.0,1.08184]
[1746111655774,1.08181,1848.1,1848.0,11.89764]
[1746111655975,2.70439,1848.2,1847.9,3.2078]
[1746111656170,1.08181,1848.1,1848.0,10.8158]
[1746111656582,1.08187,1848.0,1847.9,1.08192]
[1746111656781,1.08193,1847.9,1847.8,3.2078]
[1746111657082,1.08198,1847.8,1847.7,41.88202]
[1746111657278,1.08187,1848.0,1847.9,10.8158]
[1746111657671,1.08198,1847.8,1847.7,40.8]
[1746111658081,1.08198,1847.8,1847.7,51.6158]
[1746111658283,1.0821,1847.6,1847.5,1.08215]
[1746111658782,2.70489,1847.9,1847.5,52.69792]
[1746111658983,5.91248,1848.0,1847.7,10.8158]
[1746111659183,1.08198,1847.8,1847.7,10.8158]
[1746111659781,1.08198,1847.8,1847.5,40.8]
[1746111659983,1.0821,1847.6,1847.5,41.88216]
[1746111660374,1.0821,1847.6,1847.5,52.69796]
[1746111661082,1.0821,1847.6,1847.5,51.6158]
[1746111661287,1.0821,1847.6,1847.5,52.69796]
[1746111662985,1.0821,1847.6,1847.5,51.6158]
[1746111663289,1.08228,1847.4,1847.3,1.08227]
[1746111663685,1.08221,1847.5,1847.4,1.0822]
[1746111664076,1.08216,1847.6,1847.5,1.08214]
[1746111664280,1.08216,1847.6,1847.5,11.89794]
[1746111664481,1.08216,1847.6,1847.5,1.08214]
[1746111664682,1.08216,1847.6,1847.4,3.2078]
[1746111664683,5.876,1847.7,1847.4,3.2078]
[1746111664987,1.08222,1847.4,1847.3,41.88226]
[1746111665284,1.08222,1847.4,1847.3,10.8158]
[1746111665484,9.0838,1847.7,1847.4,1.08217]
[1746111665680,1.0821,1847.6,1847.5,10.8158]
[1746111666075,1.08216,1847.5,1847.4,1.08218]
[1746111666481,1.08216,1847.5,1847.4,11.89798]
[1746111666884,1.08222,1847.4,1847.3,40.8]
[1746111667083,2.70555,1847.4,1847.0,4.29019]
[1746111667283,1.08239,1847.1,1847.0,4.29019]
[1746111667486,1.08238,1847.2,1847.1,1.08235]
[1746111667882,1.08239,1847.1,1847.0,40.8]
[1746111668082,1.08239,1847.1,1847.0,51.6158]
[1746111668387,1.08257,1846.9,1846.8,1.08256]
[1746111668587,5.91351,1847.3,1847.0,10.8158]
[1746111668786,1.08228,1847.3,1847.2,11.89812]
[1746111669682,3.2078,1847.5,1847.2,10.8158]
[1746111669882,1.08218,1847.5,1847.4,11.89798]
[1746111670079,1.08218,1847.5,1847.4,10.8158]
[1746111670278,1.08218,1847.5,1847.4,11.89802]
[1746111670490,1.08218,1847.5,1847.4,10.8158]
[1746111671089,1.08218,1847.5,1847.4,11.89802]
[1746111672594,1.08216,1847.6,1847.5,1.08216]
[1746111672895,1.08216,1847.6,1847.5,10.8158]
[1746111673285,1.08222,1847.4,1847.3,1.08224]
[1746111674085,1.08222,1847.4,1847.3,11.89804]
[1746111674285,11.7882,1848.2,1847.3,21.22705]
[1746111674481,1.08187,1848.0,1847.9,10.8158]
[1746111674691,1.08215,1847.6,1847.4,3.2078]
[1746111674891,1.08209,1847.7,1847.6,1.08205]
[1746111675088,1.08216,1847.6,1847.5,11.89792]
[1746111675485,1.08216,1847.5,1847.4,3.2078]
[1746111675880,1.08216,1847.5,1847.4,15.10582]
[1746111676593,1.08216,1847.5,1847.4,3.2078]
[1746111676988,2.70553,1847.5,1847.1,7.1518]
[1746111677294,1.08234,1847.2,1847.1,10.8158]
[1746111677792,1.08239,1847.1,1847.0,40.8]
[1746111677993,1.08239,1847.1,1847.0,51.6158]
[1746111678196,1.08239,1847.1,1847.0,52.69825]
[1746111679694,1.08237,1847.2,1847.1,1.08235]
[1746111679881,1.08237,1847.2,1847.1,4.29015]
[1746111680087,1.08237,1847.2,1847.1,11.89815]
[1746111681396,1.08237,1847.2,1847.1,10.8158]
[1746111681894,1.08239,1847.1,1847.0,40.8]
[1746111682087,1.08245,1847.0,1846.9,4.29027]
[1746111682494,1.08245,1847.0,1846.9,55.90607]
[1746111683093,1.08245,1847.0,1846.9,40.8]
[1746111683399,1.08257,1846.8,1846.7,3.2078]
[1746111683692,5.41247,1847.0,1846.4,3.2078]
[1746111683693,2.70631,1846.9,1846.4,3.2078]
[1746111683894,1.08269,1846.7,1846.6,1.08266]
[1746111684085,1.08251,1846.9,1846.8,10.8158]
[1746111684287,1.08241,1847.1,1847.0,1.08245]
[1746111684487,1.08241,1847.1,1847.0,11.89825]
[1746111684689,4.29016,1847.2,1847.1,1.08239]
[1746111684893,1.08224,1847.4,1847.3,1.08222]
[1746111685088,1.08224,1847.4,1847.3,10.8158]
[1746111685897,1.08224,1847.4,1847.3,11.89808]
[1746111686091,1.08224,1847.4,1847.3,10.8158]
[1746111686598,1.08224,1847.4,1847.3,11.89808]
[1746111686798,1.08224,1847.4,1847.3,10.8158]
[1746111686998,1.08244,1847.1,1847.0,1.08238]
[1746111687192,1.08244,1847.1,1847.0,11.89818]
[1746111687389,1.08245,1847.0,1846.9,1.08247]
[1746111687594,1.08245,1847.0,1846.9,10.8158]
[1746111687798,1.08251,1846.9,1846.8,1.08252]
[1746111688194,3.944,1847.2,1846.8,10.8158]
[1746111688396,1.08234,1847.2,1847.1,11.89819]
[1746111688800,1.08244,1847.1,1847.0,1.08241]
[1746111689191,3.2078,1847.5,1847.0,18.52186]
[1746111689402,1.08234,1847.2,1847.1,1.08237]
[1746111689702,1.08234,1847.2,1847.1,10.8158]
[1746111689894,1.08234,1847.2,1847.1,11.89819]
[1746111690091,1.08234,1847.2,1847.1,11.90481108]
[1746111690600,1.08234,1847.2,1847.1,11.90478108]
[1746111690796,1.08234,1847.2,1847.1,10.82242108]
[1746111691698,4.29014,1847.2,1847.1,0.00662108]
[1746111692702,1.08234,1847.2,1847.1,0.00662108]
[1746111692905,4.29014,1847.2,1847.1,0.00662108]
[1746111693199,10.16614,1847.2,1847.1,0.00662108]
[1746111694394,1.08231,1847.3,1847.2,1.08228]
[1746111694596,1.08234,1847.2,1847.1,0.00662108]
[1746111694994,1.08234,1847.2,1847.1,10.82242108]
[1746111695502,4.29014,1847.2,1847.1,0.00662108]
[1746111695694,1.08234,1847.2,1847.1,0.00662108]
[1746111695895,4.29014,1847.2,1847.1,0.00662108]
[1746111696309,1.08234,1847.2,1847.1,0.00662108]
[1746111696993,4.29014,1847.2,1847.1,0.00662108]
[1746111699103,10.16614,1847.2,1847.1,0.00662108]
[1746111699597,6.95834,1847.2,1847.1,0.00662108]
[1746111699797,10.16614,1847.2,1847.1,0.00662108]
[1746111700199,6.95834,1847.2,1847.1,0.00662108]
[1746111700594,10.16614,1847.2,1847.1,0.00662108]
[1746111704105,14.02914,1847.2,1847.1,1.08e-06]
[1746111705110,19.02914,1847.2,1847.1,1.08e-06]
[1746111705305,14.02914,1847.2,1847.1,1.08e-06]
[1746111705511,19.18622214,1847.2,1847.1,1.08e-06]
[1746111705710,1.08286,1846.3,1846.2,4.2907]
[1746111705904,2.70679,1846.6,1846.2,3.2078]
[1746111706099,1.08279,1846.5,1846.4,3.2078]
[1746111706304,1.08273,1846.6,1846.5,10.8158]
[1746111706610,2.70632,1846.9,1846.5,10.8158]
[1746111706809,1.08266,1846.7,1846.6,1.08263]
[1746111707004,3.2078,1847.1,1846.8,10.8158]
[1746111707205,4.29025,1847.1,1847.0,11.89825]
[1746111708113,4.29025,1847.1,1847.0,10.8158]
[1746111708313,4.29019,1847.1,1847.0,11.89825]
[1746111708702,5.876,1847.3,1847.0,14.0236]
[1746111708905,5.876,1847.5,1847.2,10.8158]
[1746111709109,1.08213,1847.6,1847.5,1.08213]
[1746111709413,9.739,1847.9,1847.5,10.8158]
[1746111709618,69.50939,1848.2,1847.8,11.89778]
[1746111709811,1.08181,1848.1,1848.0,10.8158]
[1746111710010,1.08198,1847.8,1847.7,4.2898]
[1746111710309,1.08198,1847.8,1847.7,1.082]
[1746111710505,1.08198,1847.9,1847.8,1.08197]
[1746111710710,1.08181,1848.1,1848.0,10.8158]
[1746111710905,1.08179,1848.2,1848.1,10.8158]
[1746111712211,2.70449,1848.2,1847.7,4.2898]
[1746111712412,3.2078,1848.4,1848.0,10.8158]
[1746111712613,1.08181,1848.1,1847.7,3.2078]
[1746111712918,1.08198,1847.8,1847.7,3.2078]
[1746111713515,1.08198,1847.8,1847.7,51.6158]
[1746111713715,4.28978,1847.8,1847.7,51.6158]
[1746111714116,1.08198,1847.8,1847.7,51.6158]
[1746111716016,1.08198,1847.8,1847.7,10.8158]
[1746111717418,8.58091,1847.9,1847.5,3.2078]
[1746111717719,1.08234,1847.2,1847.1,4.29014]